bitfinex/quotes_BTCUSD_20250716
["timestamp","ask_amount","ask_price","bid_price","bid_amount"]
[1752693154648,0.81371082,119250.0,119240.0,0.06453726]
[1752693155092,0.420337,119250.0,119240.0,0.06453726]
[1752693155313,0.81371082,119250.0,119240.0,0.06453726]
[1752693155755,0.83889282,119250.0,119240.0,0.06453726]
[1752693155972,0.84207282,119250.0,119240.0,0.01143726]
[1752693156184,0.84207282,119250.0,119240.0,0.00212683]
[1752693156618,0.69055197,119250.0,119240.0,0.05953683]
[1752693156838,0.82439197,119250.0,119240.0,0.0946011]
[1752693157072,0.12107746,119250.0,119240.0,0.68277677]
[1752693157286,0.12105191,119250.0,119240.0,0.70793525]
[1752693157500,0.1126661,119250.0,119240.0,0.70793525]
[1752693157719,0.1126661,119250.0,119240.0,1.04793525]
[1752693157720,0.002,119250.0,119240.0,1.04793525]
[1752693157988,0.01038518,119250.0,119240.0,1.04793525]
[1752693158416,0.02715603,119250.0,119240.0,1.04793525]
[1752693158630,0.02715596,119250.0,119240.0,1.04793525]
[1752693158847,0.51186922,119260.0,119250.0,0.24697126]
[1752693159067,0.60576447,119260.0,119250.0,0.72807484]
[1752693159284,0.60576447,119260.0,119250.0,0.73101484]
[1752693159500,0.76508075,119260.0,119250.0,0.73101484]
[1752693159954,0.76508075,119260.0,119080.0,1.15540018]
[1752693160162,0.33464149,119250.0,119240.0,0.17611532]
[1752693160382,0.33464149,119250.0,119230.0,0.56950348]
[1752693160383,0.2991,119240.0,119230.0,0.52721382]
[1752693160596,0.49198694,119240.0,119230.0,2.03592682]
[1752693160813,0.49198778,119240.0,119230.0,0.08772962]
[1752693161032,0.48360162,119240.0,119230.0,0.13581]
[1752693161250,0.48360162,119240.0,119230.0,0.00197]
[1752693161465,0.5691119,119240.0,119230.0,0.00197]
[1752693161682,0.95369432,119240.0,119230.0,0.00197]
[1752693161939,1.07869432,119240.0,119230.0,0.00197]
[1752693162787,1.07969432,119240.0,119230.0,0.00297]
[1752693163043,0.84334374,119240.0,119230.0,0.05477]
[1752693163261,0.84652374,119240.0,119230.0,0.001]
[1752693163484,0.86106459,119240.0,119230.0,0.001]
[1752693164139,0.79371318,119240.0,119230.0,0.001]
[1752693165000,0.01677493,119220.0,119210.0,0.24334532]
[1752693165216,0.62301335,119220.0,119210.0,0.28779382]
[1752693165433,0.7064012,119220.0,119210.0,0.27940534]
[1752693165856,0.87415828,119220.0,119210.0,0.11163418]
[1752693166057,0.89934028,119220.0,119210.0,0.11163418]
[1752693166271,0.89934028,119220.0,119210.0,0.10324563]
[1752693166484,0.82634028,119220.0,119210.0,0.10324563]
[1752693166723,0.73358313,119220.0,119210.0,0.27101679]
[1752693166947,0.7335832,119220.0,119210.0,0.11163411]
[1752693167158,0.7335832,119220.0,119210.0,0.45163418]
[1752693167370,0.7335832,119220.0,119210.0,0.46002266]
[1752693167598,0.72519535,119220.0,119210.0,0.62779382]
[1752693168283,0.38002043,119220.0,119210.0,0.64457015]
[1752693168465,0.002,119220.0,119210.0,0.77869015]
[1752693168936,0.38002043,119220.0,119210.0,0.77869015]
[1752693170076,0.002,119220.0,119210.0,2.29766215]
[1752693170305,0.002,119220.0,119210.0,2.27311815]
[1752693170532,0.002,119220.0,119210.0,3.20205715]
[1752693170742,0.002,119220.0,119210.0,3.05546815]
[1752693170926,0.002,119220.0,119210.0,2.91838515]
[1752693171374,0.002,119220.0,119210.0,3.04534615]
[1752693171775,0.002,119220.0,119210.0,3.13085643]
[1752693171986,0.00012628,119240.0,119230.0,0.2522036]
[1752693172201,0.00012628,119240.0,119230.0,2.18090189]
[1752693172425,0.00012628,119240.0,119230.0,2.01605489]
[1752693172648,0.37814671,119240.0,119230.0,1.00486889]
[1752693172870,0.37814671,119240.0,119230.0,0.46767589]
[1752693173092,0.37814671,119240.0,119230.0,0.46183489]
[1752693173370,0.37814671,119240.0,119230.0,0.59361789]
[1752693174037,0.37814671,119240.0,119230.0,0.46763589]
[1752693174259,0.37814671,119240.0,119230.0,0.59361789]
[1752693174483,0.37814671,119240.0,119230.0,0.46763589]
[1752693174704,0.37814671,119240.0,119230.0,0.59332489]
[1752693176247,0.00012628,119240.0,119230.0,0.59332489]
[1752693176446,0.37814671,119240.0,119230.0,0.59332489]
[1752693176630,0.37914671,119240.0,119230.0,0.59632489]
[1752693177626,0.00112628,119240.0,119230.0,0.59632489]
[1752693177776,0.37914671,119240.0,119230.0,0.59632489]
[1752693178433,0.00112628,119240.0,119230.0,0.59632489]
[1752693178639,0.37914671,119240.0,119230.0,0.59632489]
[1752693179070,0.00112628,119240.0,119230.0,0.59632489]
[1752693180386,0.00112628,119240.0,119230.0,5.30088489]
[1752693180608,0.00112628,119240.0,119230.0,3.08079189]
[1752693180887,0.00112628,119240.0,119230.0,2.67245689]
[1752693181081,0.00112628,119240.0,119230.0,2.44908089]
[1752693181290,0.00112628,119240.0,119230.0,3.06821689]
[1752693181501,0.00112628,119240.0,119230.0,1.79545289]
[1752693182345,0.00112628,119240.0,119230.0,2.25491989]
[1752693182558,0.00112628,119240.0,119230.0,1.96187889]
[1752693182992,0.00112628,119240.0,119230.0,2.04738917]
[1752693183439,0.00112628,119240.0,119230.0,4.64996817]
[1752693183896,0.00012628,119240.0,119230.0,4.64696817]
[1752693184318,0.00112628,119240.0,119230.0,0.89814617]
[1752693184524,0.00112628,119240.0,119230.0,4.71742217]
[1752693184763,0.00112628,119240.0,119230.0,3.84741517]
[1752693184981,0.00112628,119240.0,119230.0,2.55236617]
[1752693185396,0.00112628,119240.0,119230.0,4.35068317]
[1752693185609,0.00112628,119240.0,119230.0,3.61468617]
[1752693186262,0.00112628,119240.0,119230.0,3.26317817]
[1752693186463,0.00112628,119240.0,119230.0,3.95887117]
[1752693186876,0.30022628,119240.0,119230.0,3.95887117]
[1752693187525,0.30022628,119240.0,119230.0,4.63008517]
[1752693188385,0.30022628,119240.0,119230.0,5.60887717]
[1752693189517,0.30022628,119240.0,119230.0,5.54779017]
[1752693189727,0.30022628,119240.0,119230.0,4.65775917]
[1752693190624,0.30022628,119240.0,119230.0,4.68609917]
[1752693190834,0.30022628,119240.0,119230.0,4.66362617]
[1752693191586,0.30022628,119240.0,119230.0,4.68203617]
[1752693191801,0.30022628,119240.0,119230.0,0.89814617]
[1752693191992,0.30022628,119240.0,119230.0,4.83583017]
[1752693192235,0.30022628,119240.0,119230.0,5.15551928]
[1752693192667,0.30022628,119240.0,119230.0,5.91268702]
[1752693195008,0.30022628,119240.0,119230.0,5.68427302]
[1752693195836,0.30022628,119240.0,119230.0,5.91241502]
[1752693196039,0.30022628,119240.0,119230.0,5.83194802]
[1752693196224,0.30022628,119240.0,119230.0,5.27338502]
[1752693196473,0.30022628,119240.0,119230.0,5.24230202]
[1752693196662,0.30022628,119240.0,119230.0,5.37068102]
[1752693197356,0.30022628,119240.0,119230.0,5.34910902]
[1752693197807,0.30022628,119240.0,119230.0,5.91268702]
[1752693200449,0.002,119270.0,119250.0,0.17608765]
[1752693200687,0.30122663,119270.0,119260.0,3.79414562]
[1752693200907,0.30122663,119270.0,119260.0,5.68824236]
[1752693201121,0.30122663,119270.0,119260.0,4.37213736]
[1752693201777,0.30122663,119270.0,119260.0,5.81532536]
[1752693201996,0.30122663,119270.0,119260.0,0.54913492]
[1752693201997,0.7288433,119270.0,119260.0,0.54913492]
[1752693202234,0.74561098,119270.0,119260.0,0.69754421]
[1752693202462,0.88330851,119270.0,119260.0,0.005]
[1752693203129,0.66562175,119270.0,119260.0,0.17270082]
[1752693203351,0.48758751,119270.0,119260.0,0.18108579]
[1752693203569,0.48758751,119270.0,119260.0,0.17270082]
[1752693203841,0.48758751,119270.0,119260.0,0.06146257]
[1752693204264,0.48758751,119270.0,119260.0,0.05307753]
[1752693204483,0.47081934,119270.0,119260.0,0.05307753]
[1752693204696,0.47081934,119270.0,119250.0,0.44682399]
[1752693204697,0.24307055,119260.0,119250.0,0.44682399]
[1752693204914,0.89355609,119260.0,119250.0,0.42148936]
[1752693205166,0.89680609,119260.0,119250.0,0.42148936]
[1752693205794,0.92039248,119260.0,119250.0,0.42148936]
[1752693206013,0.91200765,119260.0,119250.0,0.40838166]
[1752693206229,0.91400765,119260.0,119250.0,0.40938166]
[1752693207568,0.54454068,119260.0,119250.0,0.60225348]
[1752693207802,0.9307773,119260.0,119250.0,0.61063894]
[1752693208015,0.76307648,119260.0,119250.0,0.60225355]
[1752693208226,0.76307583,119260.0,119250.0,0.60225355]
[1752693208446,0.7714608,119260.0,119250.0,0.60225355]
[1752693208669,0.93077715,119260.0,119250.0,0.60225355]
[1752693208904,0.93077715,119260.0,119250.0,0.59386795]
[1752693209119,0.93077715,119260.0,119250.0,0.61063908]
[1752693209327,0.93077715,119260.0,119250.0,0.59386795]
[1752693209514,0.93077715,119260.0,119250.0,0.40938166]
[1752693209670,0.91400772,119260.0,119250.0,0.40938166]
[1752693212882,0.90562275,119260.0,119250.0,0.40938166]
[1752693213719,0.90562275,119260.0,119250.0,0.57709654]
[1752693213939,0.90562275,119260.0,119250.0,0.40938166]
[1752693214376,0.95562275,119260.0,119250.0,0.001]
[1752693214588,0.9701636,119260.0,119250.0,0.001]
[1752693215243,0.9953426,119260.0,119250.0,0.001]
[1752693215679,0.32231681,119230.0,119220.0,0.342]
[1752693215897,0.92150874,119230.0,119220.0,0.42732287]
[1752693216133,0.92459874,119230.0,119220.0,0.42732287]
[1752693216588,0.41450746,119240.0,119230.0,0.17613009]
[1752693216796,0.69405369,119240.0,119230.0,0.20129054]
[1752693217004,0.69405369,119240.0,119230.0,0.28705016]
[1752693217213,0.70243978,119240.0,119230.0,0.28705016]
[1752693217695,0.70243978,119240.0,119230.0,0.28705023]
[1752693217696,0.71921231,119240.0,119230.0,0.28705023]
[1752693217909,0.64421231,119240.0,119230.0,0.27866351]
[1752693218169,0.81194189,119240.0,119230.0,0.27866351]
[1752693218598,0.62944013,119240.0,119230.0,0.28805037]
[1752693218833,0.88055538,119240.0,119230.0,0.08675962]
[1752693219062,0.92438334,119240.0,119230.0,0.08675962]
[1752693219742,0.97438334,119240.0,119230.0,0.08675962]
[1752693219937,0.97438334,119240.0,119230.0,0.001]
[1752693223836,0.99956334,119240.0,119230.0,0.001]
[1752693224351,1.01410419,119240.0,119230.0,0.001]
[1752693224592,1.0814556,119240.0,119230.0,0.001]
[1752693225444,0.23943002,119230.0,119220.0,0.002]
[1752693225697,0.91358195,119230.0,119220.0,0.00212628]
[1752693225919,0.91677195,119230.0,119220.0,0.00212628]
[1752693226197,0.94195595,119230.0,119220.0,0.00212628]
[1752693226437,0.19295173,119200.0,119190.0,0.23732442]
[1752693226627,0.19295173,119200.0,119190.0,0.3076162]
[1752693226628,0.57919257,119200.0,119190.0,0.3076162]
[1752693226904,0.5283891,119200.0,119190.0,0.65600567]
[1752693227117,0.6033891,119200.0,119190.0,0.65600567]
[1752693227324,0.61177808,119200.0,119190.0,0.65600567]
[1752693227710,0.53677808,119200.0,119190.0,0.65600567]
[1752693227919,0.5283891,119200.0,119190.0,0.65600567]
[1752693228127,0.52838903,119200.0,119190.0,0.65600567]
[1752693228757,0.53677793,119200.0,119190.0,0.65600567]
[1752693229026,0.40401793,119200.0,119190.0,0.65900567]
[1752693229332,0.71598228,119200.0,119190.0,0.56518531]
[1752693229572,0.78578416,119200.0,119190.0,0.397386]
[1752693229800,0.77739526,119200.0,119190.0,0.397386]
[1752693230014,0.59283165,119200.0,119190.0,0.58196467]
[1752693230221,0.37885165,119200.0,119190.0,0.65635435]
[1752693230437,0.13476,119200.0,119190.0,0.65815435]
[1752693230896,0.001,119200.0,119190.0,0.65815435]
[1752693231341,0.001,119200.0,119190.0,0.65605435]
[1752693236234,0.001,119200.0,119190.0,0.65425435]
[1752693236235,0.00938876,119200.0,119190.0,0.65425435]
[1752693236719,0.40401829,119200.0,119190.0,0.65425435]
[1752693237178,0.40401822,119200.0,119190.0,0.65425435]
[1752693237627,0.01777759,119200.0,119190.0,0.65425435]
[1752693237830,0.40401814,119200.0,119190.0,0.65425435]
[1752693238114,0.39562924,119200.0,119190.0,0.65425435]
[1752693238572,0.38724041,119200.0,119190.0,0.65425435]
[1752693238992,0.39562931,119200.0,119190.0,0.65425435]
[1752693239465,0.40401843,119200.0,119190.0,0.65425435]
[1752693239914,0.56863533,119200.0,119190.0,0.395286]
[1752693240124,0.56863533,119200.0,119190.0,0.57147506]
[1752693240340,0.56863533,119200.0,119190.0,0.58825498]
[1752693240561,0.56863533,119200.0,119190.0,0.59664466]
[1752693240798,0.40084982,119200.0,119190.0,0.60503378]
[1752693241009,0.40114548,119200.0,119190.0,0.60703378]
[1752693241224,0.40953417,119200.0,119190.0,0.60703378]
[1752693241644,0.41792336,119200.0,119190.0,0.60703378]
[1752693241853,0.39428256,119200.0,119190.0,0.60703378]
[1752693242307,0.38589337,119200.0,119190.0,0.60703378]
[1752693243074,0.39428256,119200.0,119190.0,0.60703378]
[1752693243778,0.57045705,119200.0,119190.0,0.60703378]
[1752693244903,0.38589337,119200.0,119190.0,0.60703378]
[1752693245664,0.3858933,119200.0,119190.0,0.60703378]
[1752693245908,0.59516779,119200.0,119190.0,0.71354502]
[1752693246158,0.63706779,119200.0,119190.0,0.73032445]
[1752693246370,0.56206779,119200.0,119190.0,0.74071406]
[1752693246589,0.62867903,119200.0,119190.0,0.73232445]
[1752693246815,0.62867903,119200.0,119190.0,0.74071406]
[1752693247033,0.46089373,119200.0,119190.0,0.74071371]
[1752693247254,0.63706822,119200.0,119190.0,0.74071371]
[1752693247898,0.63706822,119200.0,119190.0,0.60703371]
[1752693248100,0.63706822,119200.0,119190.0,0.59025456]
[1752693248331,0.55367924,119200.0,119190.0,0.59025456]
[1752693248550,0.62867924,119200.0,119190.0,0.59025456]
[1752693248975,0.676701,119200.0,119190.0,0.188966]
[1752693249386,0.611901,119200.0,119190.0,0.38193484]
[1752693250058,0.536901,119200.0,119190.0,0.39032445]
[1752693250294,0.611901,119200.0,119190.0,0.39032445]
[1752693250724,0.62029005,119200.0,119190.0,0.39871399]
[1752693250948,0.62029005,119200.0,119190.0,0.40071399]
[1752693251179,0.62029005,119200.0,119190.0,0.39232445]
[1752693251610,0.54529005,119200.0,119190.0,0.40071399]
[1752693251813,0.62029005,119200.0,119190.0,0.40071399]
[1752693252027,0.62029005,119200.0,119190.0,0.39232445]
[1752693252663,0.35550651,119200.0,119190.0,0.80367392]
[1752693252907,0.37228403,119200.0,119190.0,0.80367392]
[1752693253131,0.00938869,119200.0,119190.0,0.80367392]
[1752693253367,0.3638952,119200.0,119190.0,0.80367392]
[1752693253830,0.3722841,119200.0,119190.0,0.80367392]
[1752693254043,0.37228403,119200.0,119190.0,0.80367392]
[1752693254265,0.01777752,119200.0,119190.0,0.80367392]
[1752693254466,0.3638952,119200.0,119190.0,0.80367392]
[1752693254685,0.001,119200.0,119190.0,0.80367392]
[1752693254904,0.00938862,119200.0,119190.0,0.80547392]
[1752693255122,0.36389513,119200.0,119190.0,0.80547392]
[1752693255332,0.37228382,119200.0,119190.0,0.80547392]
[1752693255545,0.001,119200.0,119190.0,0.80547392]
[1752693255754,0.001,119200.0,119190.0,1.5480532]
[1752693256554,0.001,119200.0,119190.0,5.10288356]
[1752693256764,0.001,119200.0,119190.0,5.10284356]
[1752693257385,0.001,119200.0,119190.0,4.74833705]
[1752693257595,0.001,119200.0,119190.0,5.37903305]
[1752693257802,0.001,119200.0,119190.0,5.73353956]
[1752693258015,0.2991,119210.0,119200.0,0.59635216]
[1752693258167,0.2991,119210.0,119200.0,3.81218506]
[1752693258373,0.2991,119210.0,119200.0,0.77138206]
[1752693258571,0.2991,119210.0,119200.0,5.40585906]
[1752693258831,0.2991,119210.0,119200.0,5.77490642]
[1752693259246,0.2991,119210.0,119200.0,4.75763506]
[1752693259458,0.3001,119210.0,119200.0,0.90698206]
[1752693259644,0.3001,119210.0,119200.0,2.98581106]
[1752693260409,0.3001,119210.0,119200.0,5.16792506]
[1752693260619,0.3001,119210.0,119200.0,4.99792506]
[1752693260819,0.3001,119210.0,119200.0,2.64753406]
[1752693261589,0.3001,119210.0,119200.0,4.31135706]
[1752693261809,0.3001,119210.0,119200.0,4.13712106]
[1752693262024,0.3001,119210.0,119200.0,1.9213593]
[1752693262238,0.3001,119210.0,119200.0,1.48626106]
[1752693262822,0.3001,119210.0,119200.0,0.90694206]
[1752693263037,0.3001,119210.0,119200.0,3.03939706]
[1752693263943,0.3001,119210.0,119200.0,3.53055106]
[1752693264160,0.3001,119210.0,119200.0,0.95181706]
[1752693264369,0.3001,119210.0,119200.0,1.29181706]
[1752693264584,0.3001,119210.0,119200.0,1.64812357]
[1752693265087,0.3001,119210.0,119200.0,4.81656106]
[1752693265308,0.3001,119210.0,119200.0,4.81189306]
[1752693265558,0.3001,119210.0,119200.0,4.81189606]
[1752693266024,0.3001,119210.0,119200.0,4.90010606]
[1752693266457,0.3001,119210.0,119200.0,0.99515206]
[1752693266672,0.3001,119210.0,119200.0,5.38645906]
[1752693267303,0.3001,119210.0,119200.0,5.25289906]
[1752693267513,0.3001,119210.0,119200.0,3.41296006]
[1752693267728,0.3001,119210.0,119200.0,2.15512306]
[1752693267945,0.3001,119210.0,119200.0,2.15692306]
[1752693268581,0.3001,119210.0,119200.0,3.88120906]
[1752693269496,0.3001,119210.0,119200.0,6.36415942]
[1752693269714,0.15239712,119240.0,119230.0,0.2565036]
[1752693269976,0.15239712,119240.0,119230.0,0.3919836]
[1752693270199,0.15239712,119240.0,119230.0,2.4625916]
[1752693271091,0.15439712,119240.0,119230.0,2.89090188]
[1752693272159,0.15439712,119240.0,119230.0,3.24540839]
[1752693272375,0.15439712,119240.0,119230.0,6.18934124]
[1752693275243,0.15439712,119240.0,119230.0,1.18934124]
[1752693275471,0.15439712,119240.0,119230.0,0.83483473]
[1752693275698,0.15439712,119240.0,119230.0,2.67196488]
[1752693275932,0.15439712,119240.0,119230.0,1.45473088]
[1752693276146,0.15439712,119240.0,119230.0,1.42814888]
[1752693276600,0.15439712,119240.0,119230.0,1.61501488]
[1752693277034,0.15439712,119240.0,119230.0,1.64016861]
[1752693277694,0.15439712,119240.0,119230.0,2.73061961]
[1752693278520,0.15439712,119240.0,119230.0,3.32577861]
[1752693279368,0.15439712,119240.0,119230.0,3.06768561]
[1752693279568,0.15439712,119240.0,119230.0,3.47431461]
[1752693279770,0.15439712,119240.0,119230.0,2.96598561]
[1752693280615,0.15439712,119240.0,119230.0,3.47796961]
[1752693280823,0.15439712,119240.0,119230.0,3.47797061]
[1752693281040,0.15439712,119240.0,119230.0,3.44030961]
[1752693281253,0.15439712,119240.0,119230.0,3.44031261]
[1752693281487,0.15439712,119240.0,119230.0,3.56861161]
[1752693282451,0.15439712,119240.0,119230.0,3.58550861]
[1752693283235,0.15439712,119240.0,119230.0,3.56981861]
[1752693283448,0.15439712,119240.0,119230.0,3.58533361]
[1752693284088,0.15439712,119240.0,119230.0,3.54062461]
[1752693284603,0.15439712,119240.0,119230.0,3.53562561]
[1752693285391,0.15439712,119240.0,119230.0,3.89193212]
[1752693285611,0.15439712,119240.0,119230.0,5.64040712]
[1752693286060,0.15439712,119240.0,119230.0,5.38865146]
[1752693286277,0.15439712,119240.0,119230.0,5.74315797]
[1752693286491,0.15439712,119240.0,119230.0,1.30270497]
[1752693286680,0.15439712,119240.0,119230.0,6.30270497]
[1752693287344,0.15439712,119240.0,119230.0,1.30270497]
[1752693287624,0.002,119240.0,119230.0,1.30270497]
[1752693287793,0.002,119240.0,119230.0,6.30270497]
[1752693289486,0.002,119240.0,119230.0,5.94819846]
[1752693289689,0.002,119240.0,119230.0,6.30270497]
[1752693291534,0.002,119240.0,119230.0,5.94819846]
[1752693291749,0.002,119250.0,119240.0,0.56448743]
[1752693291973,0.002,119250.0,119240.0,4.80754122]
[1752693292192,0.002,119250.0,119240.0,4.48807222]
[1752693292838,0.002,119250.0,119240.0,4.46985122]
[1752693293304,0.002,119250.0,119240.0,4.56782722]
[1752693293760,0.002,119250.0,119240.0,4.46985222]
[1752693294015,0.002,119250.0,119240.0,4.47165222]
[1752693294236,0.002,119250.0,119240.0,5.96313022]
[1752693294444,0.002,119250.0,119240.0,3.33728571]
[1752693294654,0.00712,119250.0,119240.0,1.05064471]
[1752693294871,0.36162651,119250.0,119240.0,0.83181443]
[1752693295076,0.5269824,119250.0,119240.0,0.32716743]
[1752693295342,0.45198233,119250.0,119240.0,0.32716743]
[1752693295550,0.52698233,119250.0,119240.0,0.32716743]
[1752693295755,0.51021162,119250.0,119240.0,0.72085117]
[1752693295963,0.52698233,119250.0,119240.0,0.72085117]
[1752693296184,0.51859687,119250.0,119240.0,0.72085117]
[1752693296413,0.50182651,119250.0,119240.0,0.72085117]
[1752693297264,0.5269824,119250.0,119240.0,0.72085117]
[1752693297686,0.44359694,119250.0,119240.0,0.72085117]
[1752693297895,0.52698233,119250.0,119240.0,0.72085117]
[1752693299501,0.67937945,119250.0,119240.0,0.72085117]
[1752693300376,0.30810223,119250.0,119240.0,0.72085117]
[1752693300586,0.65422363,119250.0,119240.0,0.72085117]
[1752693301067,0.66260874,119250.0,119240.0,0.72085117]
[1752693301307,0.58760874,119250.0,119240.0,0.72085117]
[1752693301540,0.67099399,119250.0,119240.0,0.72085117]
[1752693301804,0.67937938,119250.0,119240.0,0.72085117]
[1752693302055,0.65422363,119250.0,119240.0,0.72085117]
[1752693302310,0.66260874,119250.0,119240.0,0.72085117]
[1752693302531,0.65422363,119250.0,119240.0,0.72085117]
[1752693302758,0.66260874,119250.0,119240.0,0.72085117]
[1752693303607,0.51021162,119250.0,119240.0,0.72085117]
[1752693304206,0.53536786,119250.0,119240.0,0.72085117]
[1752693304404,0.45198226,119250.0,119240.0,0.72085117]
[1752693304658,0.51859687,119250.0,119240.0,0.72085117]
[1752693305492,0.44359687,119250.0,119240.0,0.72085117]
[1752693305641,0.50029851,119250.0,119240.0,0.72085117]
[1752693305826,0.50868362,119250.0,119240.0,0.72085117]
[1752693306270,0.47838362,119250.0,119240.0,0.72085117]
[1752693306476,0.05726229,119250.0,119240.0,0.72085117]
[1752693306709,0.46999851,119250.0,119240.0,0.72085117]
[1752693306909,0.115492,119250.0,119240.0,0.72085117]
[1752693307113,0.47838369,119250.0,119240.0,0.72085117]
[1752693307735,0.115492,119250.0,119240.0,0.72085117]
[1752693307948,0.007592,119250.0,119240.0,1.55572817]
[1752693308157,0.42564887,119250.0,119240.0,1.04363017]
[1752693308326,0.39524887,119250.0,119240.0,1.04363017]
[1752693308529,0.00764236,119250.0,119240.0,1.04363017]
[1752693311323,0.36214887,119250.0,119240.0,1.04363017]
[1752693312057,0.00764236,119250.0,119240.0,1.04363017]
[1752693312442,0.70140573,119250.0,119240.0,0.36395906]
[1752693312768,0.53369085,119250.0,119240.0,0.71234536]
[1752693312982,0.53369078,119250.0,119240.0,0.72073152]
[1752693313197,0.54207652,119250.0,119240.0,0.72911761]
[1752693313423,0.81779516,119250.0,119240.0,0.39468374]
[1752693313643,0.90330544,119250.0,119240.0,0.39468374]
[1752693314502,0.90330544,119250.0,119240.0,0.57079899]
[1752693315020,0.71881915,119250.0,119240.0,0.57918522]
[1752693315231,0.89491963,119250.0,119240.0,0.57918522]
[1752693315459,0.89491963,119250.0,119240.0,0.57079899]
[1752693315898,0.93653403,119250.0,119240.0,0.001]
[1752693317420,0.31501525,119240.0,119230.0,0.01048393]
[1752693317637,0.67454176,119240.0,119230.0,0.17613016]
[1752693317875,0.67454176,119240.0,119230.0,0.18451717]
[1752693318087,0.68292799,119240.0,119230.0,0.18451717]
[1752693318294,0.68292799,119240.0,119230.0,0.17613016]
[1752693318502,0.68292799,119240.0,119230.0,0.2355756]
[1752693318706,0.68492799,119240.0,119230.0,0.24496261]
[1752693319393,0.60992799,119240.0,119230.0,0.24496261]
[1752693319609,0.00702,119240.0,119230.0,0.6017359]
[1752693319822,0.002,119240.0,119230.0,1.81756641]
[1752693320259,0.002,119240.0,119230.0,1.4630599]
[1752693320921,0.002,119240.0,119230.0,1.90487669]
[1752693321143,0.002,119240.0,119230.0,6.10932269]
[1752693322052,0.00052236,119250.0,119240.0,0.25428743]
[1752693322269,0.00052236,119250.0,119240.0,4.2899749]
[1752693322477,0.00052236,119250.0,119240.0,4.64645141]
[1752693322689,0.00052236,119250.0,119240.0,4.08440741]
[1752693322898,0.01931293,119250.0,119240.0,0.8144219]
[1752693323110,0.39359029,119250.0,119240.0,0.3425149]
[1752693323330,0.42369029,119250.0,119240.0,0.3425149]
[1752693323748,0.42369022,119250.0,119240.0,0.3425149]
[1752693324206,0.01392747,119250.0,119240.0,0.3425149]
[1752693324408,0.36943398,119250.0,119240.0,0.4479659]
[1752693325035,0.36943398,119250.0,119240.0,0.3435149]
[1752693325615,0.37781923,119250.0,119240.0,0.3435149]
[1752693325873,0.38620469,119250.0,119240.0,0.3435149]
[1752693326503,0.36943398,119250.0,119240.0,0.4479509]
[1752693326933,0.36943398,119250.0,119240.0,0.3435149]
[1752693327164,0.36943398,119250.0,119240.0,0.4479509]
[1752693327368,0.36104887,119250.0,119240.0,0.6621509]
[1752693327578,0.00654236,119250.0,119240.0,0.6621509]
[1752693328629,0.00654236,119250.0,119240.0,0.3435149]
[1752693328839,0.00654236,119250.0,119240.0,0.7906179]
[1752693329047,0.00654236,119250.0,119240.0,0.7925879]
[1752693329699,0.00654236,119250.0,119240.0,0.8567879]
[1752693329908,0.00152236,119250.0,119240.0,0.8567879]
[1752693333941,0.00152236,119250.0,119240.0,4.17723169]
[1752693334812,0.00152236,119250.0,119240.0,0.70116918]
[1752693335023,0.00152236,119250.0,119240.0,0.68893918]
[1752693335894,0.00152236,119250.0,119240.0,3.51708354]
[1752693336105,0.00152236,119250.0,119240.0,3.60529354]
[1752693336728,0.002,119270.0,119260.0,0.19285508]
[1752693336946,0.00205037,119270.0,119260.0,4.53077872]
[1752693337162,0.00205037,119270.0,119260.0,4.34658972]
[1752693337991,0.00205037,119270.0,119260.0,4.89751172]
[1752693338229,0.00305037,119270.0,119260.0,4.90131172]
[1752693338647,0.00305037,119270.0,119260.0,5.25581823]
[1752693338846,0.00305037,119270.0,119260.0,1.22316023]
[1752693339059,0.00305037,119270.0,119260.0,6.22316023]
[1752693340030,0.00305037,119270.0,119260.0,5.86865372]
[1752693340433,0.00305037,119270.0,119260.0,5.75630772]
[1752693340882,0.00305037,119270.0,119260.0,6.23770108]
[1752693341284,0.00305037,119270.0,119260.0,6.32591108]
[1752693341285,1e-08,119270.0,119260.0,6.32591108]
[1752693342013,1e-08,119270.0,119260.0,5.97140457]
[1752693342179,1e-08,119270.0,119260.0,6.32591108]
[1752693342684,0.42685792,119290.0,119280.0,0.53282275]
[1752693342890,0.07437141,119290.0,119280.0,0.99408822]
[1752693343393,0.00702,119290.0,119280.0,0.99408822]
[1752693343592,0.005,119290.0,119280.0,0.99605822]
[1752693343796,0.002,119290.0,119280.0,1.1455685]
[1752693344402,0.003,119290.0,119280.0,1.1455685]
[1752693345032,0.00802,119290.0,119280.0,0.89240822]
[1752693345209,0.36252651,119290.0,119280.0,0.83286122]
[1752693345407,0.00802,119290.0,119280.0,0.83483122]
[1752693345666,0.003,119290.0,119280.0,0.68418022]
[1752693345845,0.003,119290.0,119280.0,1.78250822]
[1752693346026,0.003,119290.0,119280.0,1.80724851]
[1752693346731,0.01640244,119290.0,119280.0,1.23615351]
[1752693346931,0.00802,119290.0,119280.0,1.20354151]
[1752693348427,0.00802,119290.0,119280.0,1.03156351]
[1752693348642,0.07976621,119280.0,119270.0,0.32562853]
[1752693348858,0.45306949,119280.0,119270.0,0.66562853]
[1752693349074,0.10155291,119280.0,119270.0,0.66562853]
[1752693349281,0.45605935,119280.0,119270.0,0.66562853]
[1752693349700,0.08478614,119280.0,119270.0,0.66562853]
[1752693349911,0.43090958,119280.0,119270.0,0.66662853]
[1752693350038,0.43090958,119280.0,119270.0,0.53382853]
[1752693350239,0.43090958,119280.0,119270.0,0.66662853]
[1752693350757,0.43090958,119280.0,119270.0,0.66562853]
[1752693350989,0.00502,119280.0,119270.0,0.66759853]
[1752693351217,0.36890958,119280.0,119270.0,0.66562853]
[1752693351410,0.42472651,119280.0,119270.0,0.66562853]
[1752693351614,0.43310951,119280.0,119270.0,0.66562853]
[1752693351837,0.44149265,119280.0,119270.0,0.53282853]
[1752693352085,0.62593226,119280.0,119270.0,0.65724469]
[1752693352307,0.53326019,119280.0,119270.0,0.5328286]
[1752693352485,0.69254926,119280.0,119270.0,0.66562874]
[1752693352720,0.69254926,119280.0,119270.0,0.67401265]
[1752693352931,0.52487649,119280.0,119270.0,0.68239649]
[1752693353147,0.50810965,119280.0,119270.0,0.54959649]
[1752693353369,0.42472651,119280.0,119270.0,0.68239649]
[1752693353584,0.49972651,119280.0,119270.0,0.68239649]
[1752693353756,0.50810958,119280.0,119270.0,0.68239649]
[1752693353903,0.49972651,119280.0,119270.0,0.68239649]
[1752693354097,0.42472651,119280.0,119270.0,0.68239649]
[1752693354312,0.08102,119280.0,119270.0,0.68239649]
[1752693354622,0.08102,119280.0,119270.0,0.68436649]
[1752693354944,0.076,119280.0,119270.0,0.71516649]
[1752693355108,0.076,119280.0,119270.0,1.48135649]
[1752693355314,0.00602,119280.0,119270.0,1.45055649]
[1752693355759,0.08102,119280.0,119270.0,1.45055649]
[1752693357051,0.00303,119280.0,119270.0,1.48215649]
[1752693357282,0.076,119280.0,119270.0,1.48215649]